Cogmind - Beta 16 @@@ ROGUE MODE // 2025.11.18 @ 23:27:52 Player: guru-sr Result: Destroyed by 7P-EAS(R) with Subdweller Machine Gun Performance ------------- Evolutions (0) 0 Regions Visited (2) 400 Robots Destroyed (30) 150 Value Destroyed (595) 595 Prototype IDs (0) 0 Alien Tech Used (0) 0 Bonus (0) 0 TOTAL SCORE: 1145 Bonus ------- None Cogmind --------- Core Integrity 0/250 Matter 173/300 Energy 200/200 System Corruption 0% Temperature Cool (0) Movement Treading (240) Ox1 Location -10/Subcaves Parts ------- > --- POWER (1) -------- Subdweller Power Source > --- PROPULSION (2) --- Light Treads Light Treads > --- UTILITY (2) ------ High-capacity Storage Unit Seismic Detector > --- WEAPON (2) ------- Subdweller Machine Gun Bore Cannon > --- INVENTORY (20) --- Ion Engine Light Treads Light Treads Light Treads Light Treads Light Treads High-capacity Battery (250) Large Matter Pod (150) Improved Terrain Scanner Targeting Computer Scrap Shield Grenade Launcher Subdweller Shrapnel Launcher Datajack Mining Laser Peak State ------------ > --- POWER ------------ Ion Engine > --- PROPULSION ------- Light Treads Subdweller Monowheel > --- UTILITY ---------- High-capacity Storage Unit Seismic Detector > --- WEAPON ----------- Battle Rifle Bore Cannon > --- INVENTORY -------- Ion Engine Light Treads Light Treads Light Treads Light Treads Light Treads Light Treads High-capacity Battery Large Matter Pod Improved Terrain Scanner Targeting Computer Scrap Shield Assault Rifle Light Cannon Light Cannon Grenade Launcher Grenade Launcher Datajack Mining Laser [Rating: 15] Favorites ----------- Power Ion Engine Engine Ion Engine Propulsion Light Treads Treads Light Treads Wheel Subdweller Monowheel Utility Seismic Detector Device Seismic Detector Storage High-capacity Storage Unit Weapon Assault Rifle Energy Gun Subdweller Laser Energy Cannon Beam Cannon Ballistic Gun Assault Rifle Ballistic Cannon Light Cannon Special Weapon Mining Laser Build | -11 -10 -10 ------- Run | Yrd Mat Sub Slots Evolved . | . . . Power . | . . . Propulsion . | . . . Utility . | . . . Weapon . | . . . Parts Attached 29 | 7 11 11 Power 5 | 1 3 1 Engine 5 | 1 3 1 Core . | . . . Reactor . | . . . Propulsion 4 | 2 . 2 Treads 3 | 2 . 1 Leg . | . . . Wheel 1 | . . 1 Hover . | . . . Flight . | . . . Utility 6 | 2 4 . Device 2 | 1 1 . Storage 4 | 1 3 . Processor . | . . . Hackware . | . . . Protection . | . . . Artifact . | . . . Weapon 14 | 2 4 8 Energy Gun 1 | . . 1 Energy Cannon 1 | . 1 . Ballistic Gun 9 | 2 2 5 Ballistic Cannon 2 | . . 2 Launcher . | . . . Special Weapon 1 | . 1 . Impact Weapon . | . . . Slashing Weapon . | . . . Piercing Weapon . | . . . Special Melee Weapon . | . . . Unidentified Prototypes . | . . . Parts Lost 6 | . 3 3 Power 2 | . 1 1 Propulsion . | . . . Utility 1 | . 1 . Weapon 3 | . 1 2 Highest Loss Streak 2 | . 1 2 To Critical Strikes . | . . . Average Backups 14 | 2 14 18 Power 1 | . 1 1 Propulsion 4 | . 4 5 Utility 4 | . 5 5 Weapon 3 | . 2 5 Tool/Special . | . . . Unused Backups 24 | . 7 17 Power 2 | . 1 1 Propulsion 6 | . 1 5 Utility 11 | . 5 6 Weapon 4 | . . 4 Tool/Special 1 | . . 1 Average Slot Usage (%) 99 | . 99 97 Engine 13 | . 14 12 Treads 26 | . 27 21 Wheel 1 | . . 6 Device 13 | . 13 13 Storage 14 | . 14 14 Energy Cannon 9 | . 11 . Ballistic Gun 15 | . 14 16 Special Weapon 1 | . 1 . Peak Build Rating 15 | 7 9 15 Average Rating 8 | 5 7 11 On Entrance 5 | . 7 9 Avg Prop Armor Cover (%) 11 | . . 11 Naked Turns . | . . . Heaviest Build 59 | 11 51 59 Greatest Support 40 | 40 40 40 Greatest Overweight (x) 2 | . 1 2 Average Overweight (x) . | . . 1 Largest Inventory Capacity 20 | 8 20 20 Average Capacity 16 | 7 16 20 Most Carried 20 | 5 19 20 Average Carried 14 | 2 14 19 Final Capacity 20 | 8 20 20 Final Carried 19 | 5 19 16 Class Distribution -------------------- 100% | Mutant Dominant Class ---------------- Mutant | -10/Materials Mutant | -10/Subcaves Resources | -11 -10 -10 ----------- Run | Yrd Mat Sub Matter Collected 979 | 288 531 160 Remotely . | . . . Salvage Created 881 | 117 567 197 Parts 62 | 10 41 11 Haulers Intercepted 2 | . 2 . Recyclers Shooed . | . . . Parts Field Recycled . | . . . Retrieved Matter . | . . . Parts Self-Destructed 6 | . . 6 Prevented . | . . . Parts Restored . | . . . Kills | -11 -10 -10 ------- Run | Yrd Mat Sub Combat Hostiles Destroyed 20 | . 14 6 Guns 9 | . 4 5 Cannons 11 | . 10 1 Classes Destroyed 8 | 2 5 1 Tunneler 3 | 3 . . Hauler 2 | . 2 . Recycler 2 | 1 1 . Operator 1 | . 1 . Watcher 2 | . 2 . Swarmer 9 | . 9 . Grunt 5 | . 5 . Subdweller 6 | . . 6 Best Kill Streak 3 | 1 3 2 Combat Bots Only 3 | . 3 2 Max Kills in Single Turn 1 | 1 1 1 Gunslinging . | . . . Exploded . | . . . Melee . | . . . Uniques/NPCs Destroyed . | . . . Combat | -11 -10 -10 -------- Run | Yrd Mat Sub Hostile Shots Fired 115 | . 76 39 Missed 34 | . 27 7 Hits 81 | . 49 32 Projectile 81 | . 49 32 Critical Strikes 4 | . . 4 Damage Taken 1302 | . 572 730 Core 254 | . 74 180 Absorbed by Shields . | . . . Regen/Repaired (Parts) 70 | . 70 . Core Remaining (%) 100 | 100 . . Volleys Fired 92 | 9 55 28 Largest 2 | 2 2 2 Hottest 100 | 40 100 90 Shots Fired 168 | 18 97 53 Gun 105 | 18 42 45 Cannon 51 | . 43 8 Launcher . | . . . Special 12 | . 12 . Kinetic 103 | 18 42 43 Thermal 65 | . 55 10 Explosive . | . . . Electromagnetic . | . . . Robot Hit Streak 16 | 5 8 16 Robot Miss Streak 3 | 1 3 3 Penetration Max . | . . . Secondary Targets . | . . . Shots Hit Robots 105 | 12 51 42 Core Hits 40 | 6 22 12 Critical Kills 1 | . . 1 Critical Parts Destroyed 1 | . . 1 Critical Strikes 6 | . . 6 Destroy 6 | . . 6 Melee Attacks . | . . . Impact . | . . . Slashing . | . . . Piercing . | . . . Sneak Attacks . | . . . Combat Hostiles . | . . . Follow-up Attacks . | . . . Damage Inflicted 1700 | 114 814 772 Guns 1081 | 114 300 667 Cannons 619 | . 514 105 Explosions . | . . . Melee . | . . . Ramming . | . . . Kinetic 1018 | 114 300 604 Thermal 682 | . 514 168 Explosive . | . . . Electromagnetic . | . . . Impact . | . . . Slashing . | . . . Piercing . | . . . Highest Corruption . | . . . Average Corruption . | . . . Corruption Purged . | . . . Corruption Blocked . | . . . Overload Shots . | . . . Overflow Damage 17 | . 17 . Projectiles 17 | . 17 . Explosions . | . . . Melee . | . . . Knockbacks 1 | . . 1 Impact . | . . . Kinetic 1 | . . 1 Secondary . | . . . Self-Inflicted Damage . | . . . Shots . | . . . Rammed . | . . . Targets Rammed . | . . . Kicked . | . . . Crushed . | . . . Highest Temperature 146 | . 146 . Average Temperature 34 | . 34 . Received Heat Transfer 162 | . 72 90 Siege Activations . | . . . Martial Activations . | . . . Shielding Activations . | . . . Robots Disrupted . | . . . Combat Hostiles . | . . . Robots Corrupted . | . . . Combat Hostiles . | . . . Parts Fried . | . . . Impact Corruptions . | . . . Robots Melted . | . . . Combat Hostiles . | . . . Parts Melted 2 | . 2 . Heat Transferred 1273 | . 1073 200 Parts Sabotaged . | . . . Parts Stolen . | . . . Parts Stripped . | . . . Power Chain Reactions . | . . . Alert | -11 -10 -10 ------- Run | Yrd Mat Sub Maximum Alert Level 1 | . 1 . Low Security (%) 99 | 100 99 . Level 1 . | . . . Level 2 . | . . . Level 3 . | . . . Level 4 . | . . . Level 5 . | . . . High Security . | . . . Max Security . | . . . Peak Influence 208 | 5 208 . Initial . | . . . Average 73 | . 79 . Influence Increases 550 | 20 530 . Destroy 0b10 Robot/C 280 | . 280 . Destroy 0b10 Robot/NC 50 | 20 30 . Destroy Leader 58 | . 58 . Successful Hack 29 | . 29 . Select Force Hacks 60 | . 60 . Disable Machine 15 | . 15 . Destroy Structure 13 | . 13 . Lose Combat Pursuer 45 | . 45 . Influence Decreases 550 | 20 355 175 Entered New Map 85 | . . 85 Time Decay 435 | 20 325 90 Lost Part 30 | . 30 . Squads Dispatched 3 | . 3 . Investigation 2 | . 2 . Extermination . | . . . Reinforcement 1 | . 1 . Assault . | . . . Garrison . | . . . Intercept . | . . . Searches Triggered . | . . . Construction Impeded . | . . . Haulers Reinforced . | . . . Active Scanning Responses . | . . . Cargo Convoy Interrupts . | . . . Stealth | -11 -10 -10 --------- Run | Yrd Mat Sub Distress Signals . | . . . Communications Jammed . | . . . Distress Signals . | . . . Times Spotted 35 | . 27 8 Peak Tracking Total 4 | . 4 2 Tactical Retreats 3 | . 3 . Traps | -11 -10 -10 ------- Run | Yrd Mat Sub Traps Triggered 5 | . 4 1 Indirectly . | . . . Trap Hack Attempts . | . . . Triggered . | . . . Disarmed . | . . . Reprogrammed . | . . . Reused . | . . . Traps Extracted . | . . . Installed . | . . . Triggered . | . . . Machines | -11 -10 -10 ---------- Run | Yrd Mat Sub Machines Disabled 1 | . 1 . Max in Single Turn 1 | . 1 . Machines Repaired . | . . . Machines Dismantled . | . . . Machines Sabotaged . | . . . Overloaded Fab Kills . | . . . Hacking | -11 -10 -10 --------- Run | Yrd Mat Sub Machines Accessed 10 | . 10 . Terminals 7 | . 7 . Fabricators . | . . . Repair Stations 1 | . 1 . Recycling Units 2 | . 2 . Scanalyzers . | . . . Garrison Access . | . . . Total Hacks 38 | . 38 . Successful 22 | . 22 . Failed 15 | . 15 . Catastrophic 2 | . 2 . Database Lockouts 1 | . 1 . Manual 30 | . 30 . Terminals 28 | . 28 . Fabricators . | . . . Repair Stations 4 | . 4 . Recycling Units 6 | . 6 . Scanalyzers . | . . . Garrison Access . | . . . Terminal Hacks 6 | . 6 . Robot Analysis 1 | . 1 . Terminal Index 1 | . 1 . Locate Traps 3 | . 3 . Zone Layout 1 | . 1 . Fabricator Hacks . | . . . Repair Station Hacks 3 | . 3 . Scan Component 2 | . 2 . Repair 1 | . 1 . Recycling Unit Hacks 2 | . 2 . Report Inventory 2 | . 2 . Scanalyzer . | . . . Garrison Access Hacks . | . . . Unauthorized Hacks 11 | . 11 . Terminals 9 | . 9 . Assimilate 2 | . 2 . Botnet 2 | . 2 . Operators 1 | . 1 . Skim 4 | . 4 . Fabricators . | . . . Repair Stations . | . . . Recycling Units 2 | . 2 . Tunnel 2 | . 2 . Scanalyzers . | . . . Garrison Access . | . . . Data Cores Recovered . | . . . Used . | . . . Hacking Detections 8 | . 8 . Full Trace Events 1 | . 1 . Feedback Events . | . . . Feedback Blocked . | . . . Robot Schematics Acquired . | . . . Robots Built . | . . . Authchips . | . . . Time . | . . . Total Robot Build Rating . | . . . Part Schematics Acquired . | . . . Parts Built . | . . . Authchips . | . . . Time . | . . . Total Part Build Rating . | . . . Part Studies Acquired . | . . . Parts Repaired 1 | . 1 . Time 26 | . 26 . Parts Recycled . | . . . Recycled Matter . | . . . Retrieved Matter . | . . . Retrieved Components . | . . . Parts Scanalyzed . | . . . Part Schematics Acquired . | . . . Parts Damaged . | . . . Bothacking | -11 -10 -10 ------------ Run | Yrd Mat Sub Used RIF Installer . | . . . Robots Hacked . | . . . Non-combat . | . . . Combat . | . . . Robot Hacks Applied . | . . . Relay Couplers Released . | . . . Fabnet Peak Effective % . | . . . Robots Rewired . | . . . Allies Hacked . | . . . Hacks Repelled . | . . . Allies | -11 -10 -10 -------- Run | Yrd Mat Sub Total Allies . | . . . Largest Group . | . . . Highest-Rated Group . | . . . Highest-Rated Ally . | . . . Total Orders . | . . . Ally Attacks . | . . . Total Damage . | . . . Kills . | . . . Allies Corrupted . | . . . Allies Melted . | . . . Intel | -11 -10 -10 ------- Run | Yrd Mat Sub Active Infowar (turns) 2491 | 78 1993 420 Seismic 2491 | 78 1993 420 Robot Analysis Total 1 | . 1 . Derelict Logs Recovered . | . . . Drone Launches . | . . . Drone Recoveries . | . . . Exploration | -11 -10 -10 ------------- Run | Yrd Mat Sub Turns Passed 2654 | 170 2041 443 Spaces Moved 1147 | 83 887 177 Core 12 | 12 . . Treads 1022 | 71 887 64 Legs . | . . . Wheels 113 | . . 113 Hover . | . . . Flight . | . . . Fastest Speed 50 | 50 160 130 Average Speed 182 | 144 188 170 Slowest Speed 320 | 160 240 320 Overloaded Moves . | . . . Propulsion Burnouts . | . . . Robots Hopped . | . . . Potential Cave-ins 2 | . 2 . Cave-ins Triggered . | . . . Exploration Rate (%) 37 | 4 100 8 Regions Visited 2 Branch Regions 1 Pre-discovered Areas 2 | . 2 . Known Exits Taken . | . . . Unknown Exits Taken 2 | 1 1 . Scrap Searched 8 | . . 8 Spaces Dug 12 | . 12 . Terrain Destroyed 13 | . 12 1 Melee . | . . . Projectile 13 | . 12 1 AOE . | . . . Terrain Rammed . | . . . Walls Destroyed . | . . . Machines Disabled . | . . . Actions | -11 -10 -10 --------- Run | Yrd Mat Sub Total 1520 | 116 1138 266 Wait 161 | 13 121 27 Move 1145 | 82 886 177 Hop . | . . . Pick Up 41 | 5 29 7 Fast Attach 15 | 7 5 3 Attach 11 | . 5 6 Detach 3 | . 2 1 Swap 25 | . 19 6 Drop 27 | . 16 11 Fire 92 | 9 55 28 Melee . | . . . Ram . | . . . Kick . | . . . Crush . | . . . Escape Stasis . | . . . Rewire . | . . . Trap . | . . . Miscellaneous . | . . . Route ------- -11/Scrapyard -10/Materials (discovered 5 exits: [*Mat x3] / [*Min] / [*Sub]) -10/Subcaves History --------- Turn | Location | Event 8 | -11/Scrapyard | Discovered new exit (range 16) 171 | -11/Scrapyard | Entered Materials 311 | -10/Materials | Build established: Mutant 568 | -10/Materials | Discovered new exit (range 14) 796 | -10/Materials | Central database locked down 805 | -10/Materials | Discovered new exit (range 16) 1153 | -10/Materials | Discovered new exit (range 16) 1648 | -10/Materials | Discovered new exit (range 10) 1788 | -10/Materials | Repaired Lgt. Treads 2189 | -10/Materials | Discovered new exit (range 10) 2212 | -10/Materials | Entered Subcaves 2509 | -10/Subcaves | Ambushed by swarm of Subdwellers 2603 | -10/Subcaves | Core integrity fell below 50% 2627 | -10/Subcaves | Core integrity fell below 20% 2655 | -10/Subcaves | Destroyed by 7P-EAS(R) with Subdweller Machine Gun Last Messages --------------- 02608_ Sub. Laser shoots sparks and powers down. 02608_ PZ-DY7(R) destroyed. 02613_ 2R-EA1(R) destroyed. 02616_ Dropped Broken Sub. Laser. 02618_ Subatomizers dissect the Sub. Power Source, destroying it. 02632_ Subatomizers dissect the Sub. Optics. 02632_ Sub. Machine Gun destroyed. 02632_ 7P-EAS(R) affixes Scrap Shield Fragment to Scrap Shield. 02633_ 3Q-C98(R) suffers critical hit (Destroy). 02639_ HV Slug penetrates 3Q-C98(R). 02639_ 3Q-C98(R) suffers critical hit (Destroy). 02639_ 3Q-C98(R) destroyed. 02642_ 7P-EAS(R) suffers critical hit (Destroy). 02642_ Destroyed Sub. Optics. 02645_ 7P-EAS(R) suffers critical hit (Destroy). 02645_ 7P-EAS(R) knocked back. 02648_ HV Slug penetrates Wall. 02649_ 7P-EAS(R) affixes Scrap Shield Fragment to Scrap Shield. 02651_ Sub. Machine Gun destroyed. 02652_ 8O-2ZP(R) destroyed. Map ----- +----------------------------------------------------+ | ???????????????????????????????# ##?????????? | | ????????????????????????????????# ##????????? | | ???????????????????????????????## #????????? | | ??????????????????????????????## #????????? | | ??????????????????????????????# #????????? | | ?????????????????????????????## #######????????? | | ?????????????????????????????# ##??????????????? | | ?????????????????????????????# ###?????????????? | | ?????????????????????????????# ####??????????? | | ?????????????????????????????# ##?????????? | | ?????????????????????????????# ##????????? | | ?????????????????????????????# #????????? | | ?????????????????????????????# # ###????????? | | ?????????????????????????????# ## #?????????? | | ?????????????????????????????# ## ##?????????? | | ????????????????????######??## #?????????? | | ??????????????????###<<<<#### #?????????? | | ?????????????????##< ^ " ### ### #?????????? | | ?????????????????#< < &< ## ##??####?????????? | | ????????????????##< !%!!%## #????????????????? | | ????????????????# [ <# #????????????????? | | ????????????????# [ ];#%## ##???????????????? | | ????????????????#< [%% [=*!&! ##?##???????????? | | ????????????????#< %]% *%R%! ## #???????????? | | ????????????????#< !%%% &&%* = #???????????? | | ????????????????#< ]! [@# " #???????????? | | ????????????????## < ^ !!###" #???????????? | | ?????????????????# <## ##??????????? | | ?????????????????##< <<### #??????????? | | ??????????????????### <<<####= #??????????? | | ????????????????????#######?# ##??????????? | | ????????????????????????????## ##???????????? | | ?????????????????????????????# # #????????????? | | ?????????????????????????????# & ## #????????????? | | ?????????????????????????????##%&#?##????????????? | | ?????????????????????????????# #???????????????? | | ?????????????????????????????# #??????????????? | | ????????????????????????????? # ##??????????????? | | ???????????????????????????? #???????????????? | | ??????????????????????????? #???????????????? | | ??????????????????????????? ?# #???????????????? | | ??????????????????????????###?####???????????????? | | ?????????????????????????????????????????????????? | | ?????????????????????????????????????????????????? | | ?????????????????????????????????????????????????? | | ?????????????????????????????????????????????????? | | ?????????????????????????????????????????????????? | | ?????????????????????????????????????????????????? | | ?????????????????????????????????????????????????? | | ?????????????????????????????????????????????????? | +----------------------------------------------------+ Best States ------------- Heat Dissipation 25 Energy Generation 15 Energy Capacity 250 Matter Stores 300 Matter Capacity 300 Sight Range 16 Terrain Scan Density 10 Evasion (%) 50 Recoil Reduction 2 Item Schematics ----------------- None Robot Schematics ------------------ None Fabricated ------------ Nothing Repaired ---------- Lgt. Treads | 50% | -10/Materials Studied --------- None Alien Tech Used ----------------- None Achievements -------------- None Challenges ------------ None Game ------ Seed MetaLauncherPurifier Manual? 0 Play Time 00:37:35 Cumulative 41.3 hours Start 2025.11.18 @ 22:50:43 End 2025.11.18 @ 23:27:52 Sessions 1 Manual Loads 0 Difficulty Rogue Special Mode None Game No. 24 Rogue 24 Adventurer 0 Explorer 0 Win Type - Total 1 Types 1/0/0/0/0/0/0/0/0/0 Lore% 22 Gallery% 26 Achievement% 33 Wizard Run 0 Options --------- Layout 0 ASCII 0 Keyboard 0 Movement Mouse Keybinds 0 Fullscreen 1 Font 18/SmallcapsGlow Map View 76x50 Zoom Use 0% Tactical HUD 1 Map Filters NONE Filters NONE Steam 1 RUN: 5167f49b-03ae-4f6a-bc03-01fa2157f542